Cogmind - Beta 11 X8 @@@ ROGUE MODE // 2021.10.24 @ 11:31:33 Player: Marlyn Result: Destroyed by as-27290 with Assembled Heavy Rifle Performance ------------- Evolutions (0) 0 Regions Visited (4) 800 Robots Destroyed (22) 110 Value Destroyed (557) 557 Prototype IDs (24) 480 Alien Tech Used (0) 0 Bonus (286) 286 TOTAL SCORE: 2233 Bonus ------- Aligned with FarCom 300 Friendly Fire -14 Cogmind --------- Core Integrity 0/250 Matter 290/300 Energy 95/125 System Corruption 0% Temperature Cool (1) Movement Flying (40) Location -9/Mines Parts ------- > --- POWER (1) -------- Light Ion Engine > --- PROPULSION (2) --- Flight Unit > --- UTILITY (2) ------ (None) > --- WEAPON (2) ------- (None) > --- INVENTORY (5) ---- Light Nuclear Core Light Treads Light Treads Decoy Drone Bay (0/16) Peak State ------------ > --- POWER ------------ (None) > --- PROPULSION ------- Compact Wheel > --- UTILITY ---------- Decoy Drone Bay > --- WEAPON ----------- Particle Gun Particle Gun > --- INVENTORY -------- Light Treads Light Treads Compact Wheel [Rating: 19] Favorites ----------- Power Light Ion Engine Engine Light Ion Engine Propulsion Compact Wheel Leg Aluminum Leg Wheel Compact Wheel Flight Unit Flight Unit Utility Improved Heat Sink Device Improved Heat Sink Storage Huge Storage Unit Processor Visual Processing Unit Weapon Particle Gun Energy Gun Particle Gun Ballistic Cannon Improved Light Cannon Build | -11 -10 -10 -10 -9 ------- Run | Scr Mat Min Exi Min Slots Evolved . | . . . . . Power . | . . . . . Propulsion . | . . . . . Utility . | . . . . . Weapon . | . . . . . Parts Attached 18 | 1 13 . . 4 Power 2 | . 1 . . 1 Engine 2 | . 1 . . 1 Core . | . . . . . Reactor . | . . . . . Propulsion 3 | . 2 . . 1 Treads . | . . . . . Leg . | . . . . . Wheel 2 | . 2 . . . Hover . | . . . . . Flight 1 | . . . . 1 Utility 5 | . 4 . . 1 Device 2 | . 1 . . 1 Storage 2 | . 2 . . . Processor 1 | . 1 . . . Hackware . | . . . . . Protection . | . . . . . Artifact . | . . . . . Weapon 8 | 1 6 . . 1 Energy Gun 7 | 1 5 . . 1 Energy Cannon . | . . . . . Ballistic Gun . | . . . . . Ballistic Cannon 1 | . 1 . . . Launcher . | . . . . . Special Weapon . | . . . . . Impact Weapon . | . . . . . Slashing Weapon . | . . . . . Piercing Weapon . | . . . . . Special Melee Weapon . | . . . . . Unidentified Prototypes 1 | . . . . 1 Parts Lost 9 | . 1 . . 8 Power 1 | . . . . 1 Propulsion 2 | . . . . 2 Utility 1 | . . . . 1 Weapon 5 | . 1 . . 4 Highest Loss Streak 7 | . 1 . . 7 Average Slot Usage (%) 96 | . 99 100 100 76 Engine 13 | . 14 14 14 7 Leg 1 | . 2 . . . Wheel 25 | . 25 28 28 20 Device 10 | . 8 14 14 13 Storage 13 | . 14 14 14 7 Processor 2 | . 5 . . . Energy Gun 26 | . 25 28 28 26 Ballistic Cannon 1 | . 2 . . . Naked Turns . | . . . . . Heaviest Build 92 | 13 92 90 90 90 Greatest Support 32 | 20 32 32 32 32 Greatest Overweight (x) 2 | . 2 2 2 2 Average Overweight (x) 1 | . . 2 2 1 Largest Inventory Capacity 25 | 8 25 25 25 25 Average Capacity 20 | 8 19 25 25 15 Most Carried 21 | 6 20 20 21 21 Average Carried 15 | 6 14 19 20 12 Final Capacity 25 | 8 25 25 25 5 Final Carried 21 | 6 18 20 21 5 Class Distribution -------------------- 100% | Mutant Dominant Class ---------------- Mutant | -10/Materials Mutant | -10/Mines Mutant | -10/Exiles Mutant | -9/Mines Resources | -11 -10 -10 -10 -9 ----------- Run | Scr Mat Min Exi Min Matter Collected 449 | 200 219 . . 30 Remotely . | . . . . . Salvage Created 729 | . 702 . . 27 Parts 37 | . 37 . . . Haulers Intercepted 1 | . 1 . . . Recyclers Shooed 1 | . 1 . . . Parts Field Recycled . | . . . . . Retrieved Matter . | . . . . . Parts Self-Destructed . | . . . . . Prevented . | . . . . . Kills | -11 -10 -10 -10 -9 ------- Run | Scr Mat Min Exi Min Combat Hostiles Destroyed 13 | . 11 . . 2 Guns 12 | . 10 . . 2 Cannons 1 | . 1 . . . Classes Destroyed 8 | . 7 . . 1 Worker 1 | . 1 . . . Hauler 1 | . 1 . . . Recycler 2 | . 2 . . . Mechanic 1 | . 1 . . . Operator 4 | . 4 . . . Watcher 2 | . 2 . . . Grunt 11 | . 11 . . . Assembled 2 | . . . . 2 Best Kill Streak 4 | . 4 . . 2 Combat Bots Only 3 | . 3 . . 2 Max Kills in Single Turn 1 | . 1 . . 1 Gunslinging . | . . . . . Exploded . | . . . . . Melee . | . . . . . Uniques/NPCs Destroyed . | . . . . . Combat | -11 -10 -10 -10 -9 -------- Run | Scr Mat Min Exi Min Damage Taken 879 | . 563 . . 316 Core 262 | . 181 . . 81 Absorbed by Shields . | . . . . . Core Remaining (%) 100 | 100 . . . . Volleys Fired 74 | . 61 . . 13 Largest 2 | . 2 . . 2 Hottest 130 | . 130 . . 130 Shots Fired 147 | . 121 . . 26 Gun 126 | . 100 . . 26 Cannon 21 | . 21 . . . Launcher . | . . . . . Special . | . . . . . Kinetic 21 | . 21 . . . Thermal 126 | . 100 . . 26 Explosive . | . . . . . Electromagnetic . | . . . . . Robot Hit Streak 8 | . 8 . . 5 Robot Miss Streak 7 | . 4 . . 7 Penetration Max . | . . . . . Secondary Targets 1 | . 1 . . . Max Gunslinging Chain 1 | . 1 . . . Shots Hit Robots 84 | . 71 . . 13 Core Hits 40 | . 34 . . 6 Critical Kills . | . . . . . Critical Parts Destroyed . | . . . . . Critical Strikes 3 | . 3 . . . Burn 3 | . 3 . . . Melee Attacks . | . . . . . Impact . | . . . . . Slashing . | . . . . . Piercing . | . . . . . Sneak Attacks . | . . . . . Combat Hostiles . | . . . . . Follow-up Attacks . | . . . . . Damage Inflicted 1362 | . 1151 . . 211 Guns 1048 | . 837 . . 211 Cannons 314 | . 314 . . . Explosions . | . . . . . Melee . | . . . . . Ramming . | . . . . . Kinetic 314 | . 314 . . . Thermal 1048 | . 837 . . 211 Explosive . | . . . . . Electromagnetic . | . . . . . Impact . | . . . . . Slashing . | . . . . . Piercing . | . . . . . Highest Corruption . | . . . . . Average Corruption . | . . . . . Corruption Purged . | . . . . . Overload Shots . | . . . . . Overflow Damage . | . . . . . Projectiles . | . . . . . Explosions . | . . . . . Melee . | . . . . . Knockbacks 8 | . 8 . . . Impact . | . . . . . Kinetic 8 | . 8 . . . Secondary . | . . . . . Self-Inflicted Damage . | . . . . . Shots . | . . . . . Rammed . | . . . . . Targets Rammed . | . . . . . Kicked . | . . . . . Crushed . | . . . . . Highest Temperature 308 | . 308 . . 296 Average Temperature 102 | . 96 . . 129 Received Heat Transfer 416 | . 336 . . 80 Effects 1 | . 1 . . . Energy Bleed 1 | . 1 . . . Siege Activations . | . . . . . Robots Corrupted . | . . . . . Combat Hostiles . | . . . . . Parts Fried . | . . . . . Impact Corruptions . | . . . . . Robots Melted . | . . . . . Combat Hostiles . | . . . . . Parts Melted 4 | . 4 . . . Heat Transferred 2682 | . 2164 . . 518 Parts Sabotaged . | . . . . . Parts Stolen . | . . . . . Parts Stripped . | . . . . . Power Chain Reactions . | . . . . . Missiles Intercepted . | . . . . . Alert | -11 -10 -10 -10 -9 ------- Run | Scr Mat Min Exi Min Peak Influence 210 | . 210 7 . 15 Initial 7 | . . 7 . . Average 63 | . 83 7 . 1 Maximum Alert Level 1 | . 1 . . . Low Security (%) 98 | 100 97 100 . 100 Level 1 1 | . 2 . . . Level 2 . | . . . . . Level 3 . | . . . . . Level 4 . | . . . . . Level 5 . | . . . . . High Security . | . . . . . Max Security . | . . . . . Squads Dispatched 5 | . 5 . . . Investigation 1 | . 1 . . . Extermination . | . . . . . Reinforcement 4 | . 4 . . . Assault . | . . . . . Garrison . | . . . . . Intercept . | . . . . . Construction Impeded . | . . . . . Haulers Reinforced . | . . . . . Active Scanning Responses . | . . . . . Cargo Convoy Interrupts . | . . . . . Stealth | -11 -10 -10 -10 -9 --------- Run | Scr Mat Min Exi Min Distress Signals 1 | . 1 . . . Communications Jammed . | . . . . . Distress Signals . | . . . . . Times Spotted 32 | . 23 . . 9 Peak Tracking Total 4 | . 4 . . 4 Tactical Retreats 1 | . . . . 1 Traps | -11 -10 -10 -10 -9 ------- Run | Scr Mat Min Exi Min Traps Triggered 1 | . 1 . . . Indirectly . | . . . . . Trap Hack Attempts . | . . . . . Triggered . | . . . . . Disarmed . | . . . . . Reprogrammed . | . . . . . Reused . | . . . . . Traps Extracted . | . . . . . Installed . | . . . . . Triggered . | . . . . . Machines | -11 -10 -10 -10 -9 ---------- Run | Scr Mat Min Exi Min Machines Disabled 2 | . 2 . . . Max in Single Turn 1 | . 1 . . . Machines Sabotaged . | . . . . . Garrisons Compromised . | . . . . . Overloaded Fab Kills . | . . . . . Hacking | -11 -10 -10 -10 -9 --------- Run | Scr Mat Min Exi Min Machines Accessed 5 | . 3 1 1 . Terminals 3 | . 3 . . . Fabricators . | . . . . . Repair Stations . | . . . . . Recycling Units . | . . . . . Scanalyzers . | . . . . . Garrison Access . | . . . . . Total Hacks 8 | . 6 1 1 . Successful 5 | . 3 1 1 . Failed 3 | . 3 . . . Catastrophic . | . . . . . Database Lockouts . | . . . . . Manual 5 | . 4 . 1 . Terminals 6 | . 6 . . . Fabricators . | . . . . . Repair Stations . | . . . . . Recycling Units . | . . . . . Scanalyzers . | . . . . . Garrison Access . | . . . . . Terminal Hacks 4 | . 2 1 1 . Open Door 1 | . . 1 . . Terminal Index 1 | . 1 . . . Unreport Threat 1 | . 1 . . . EX-Prototype ID Bank 1 | . . . 1 . Fabricator Hacks . | . . . . . Repair Station Hacks . | . . . . . Recycling Unit Hacks . | . . . . . Scanalyzer . | . . . . . Garrison Access Hacks . | . . . . . Unauthorized Hacks 1 | . 1 . . . Terminals 1 | . 1 . . . Assimilate 1 | . 1 . . . Fabricators . | . . . . . Repair Stations . | . . . . . Recycling Units . | . . . . . Scanalyzers . | . . . . . Garrison Access . | . . . . . Data Cores Recovered . | . . . . . Used . | . . . . . Hacking Detections 3 | . 3 . . . Full Trace Events . | . . . . . Feedback Events . | . . . . . Feedback Blocked . | . . . . . Robot Schematics Acquired . | . . . . . Robots Built . | . . . . . Authchips . | . . . . . Time . | . . . . . Total Robot Build Rating . | . . . . . Part Schematics Acquired . | . . . . . Parts Built . | . . . . . Authchips . | . . . . . Time . | . . . . . Total Part Build Rating . | . . . . . Parts Repaired . | . . . . . Time . | . . . . . Parts Recycled . | . . . . . Recycled Matter . | . . . . . Retrieved Matter . | . . . . . Retrieved Components . | . . . . . Parts Scanalyzed . | . . . . . Part Schematics Acquired . | . . . . . Parts Damaged . | . . . . . Bothacking | -11 -10 -10 -10 -9 ------------ Run | Scr Mat Min Exi Min Used RIF Installer . | . . . . . Robots Hacked . | . . . . . Non-combat . | . . . . . Combat . | . . . . . Robot Hacks Applied . | . . . . . Relay Couplers Released . | . . . . . Robots Rewired . | . . . . . Allies Hacked . | . . . . . Hacks Repelled . | . . . . . Allies | -11 -10 -10 -10 -9 -------- Run | Scr Mat Min Exi Min Total Allies . | . . . . . Largest Group . | . . . . . Highest-Rated Group . | . . . . . Highest-Rated Ally . | . . . . . Total Orders . | . . . . . Ally Attacks . | . . . . . Total Damage . | . . . . . Kills . | . . . . . Allies Corrupted 1 | . . . . 1 Allies Melted . | . . . . . Intel | -11 -10 -10 -10 -9 ------- Run | Scr Mat Min Exi Min Robot Analysis Total . | . . . . . Derelict Logs Recovered 1 | . . 1 . . Drone Launches 16 | . . . . 16 Drone Recoveries . | . . . . . Exploration | -11 -10 -10 -10 -9 ------------- Run | Scr Mat Min Exi Min Turns Passed 1365 | 2 800 104 291 168 Spaces Moved 846 | 1 434 80 224 107 Core 10 | . . . . 10 Treads . | . . . . . Legs 38 | 1 37 . . . Wheels 792 | . 397 80 224 91 Hover . | . . . . . Flight 6 | . . . . 6 Fastest Speed 40 | 120 100 130 130 40 Average Speed 119 | 120 115 130 130 110 Slowest Speed 130 | 120 130 130 130 130 Overloaded Moves . | . . . . . Propulsion Burnouts . | . . . . . Robots Hopped . | . . . . . Cave-ins Triggered . | . . . . . Exploration Rate (%) 40 | 2 63 26 60 53 Regions Visited 4 Branch Regions 3 Pre-discovered Areas 1 | . . 1 . . Known Exits Taken . | . . . . . Unknown Exits Taken 4 | 1 1 1 1 . Scrap Searched . | . . . . . Spaces Dug . | . . . . . Terrain Destroyed 2 | . 2 . . . Melee . | . . . . . Projectile 2 | . 2 . . . AOE . | . . . . . Terrain Rammed . | . . . . . Walls Destroyed . | . . . . . Machines Disabled . | . . . . . Actions | -11 -10 -10 -10 -9 --------- Run | Scr Mat Min Exi Min Total 1052 | 1 615 80 224 132 Wait 85 | . 84 . . 1 Move 842 | . 433 79 223 107 Hop . | . . . . . Pick Up 18 | . 15 1 1 1 Fast Attach 5 | . 3 . . 2 Attach 3 | . 1 . . 2 Detach 4 | . 2 . . 2 Swap 10 | 1 9 . . . Drop 11 | . 7 . . 4 Fire 74 | . 61 . . 13 Melee . | . . . . . Ram . | . . . . . Kick . | . . . . . Crush . | . . . . . Escape Stasis . | . . . . . Rewire . | . . . . . Trap . | . . . . . Miscellaneous . | . . . . . Route ------- -11/Scrapyard -10/Materials (discovered 3 exits: [*Mat] / *Min x2) -10/Mines -10/Exiles -9/Mines (discovered 1 exit: [*Mat]) History --------- Turn | Location | Event 3 | -11/Scrapyard | Discovered new exit (range 0) 3 | -11/Scrapyard | Entered Materials 292 | -10/Materials | Core integrity fell below 50% 314 | -10/Materials | Build established: Mutant 403 | -10/Materials | Discovered new exit (range 15) 509 | -10/Materials | Discovered new exit (range 10) 540 | -10/Materials | Discovered new exit (range 8) 803 | -10/Materials | Entered Mines 815 | -10/Mines | Found the Drone Emporium 820 | -10/Mines | Found Prototype Device 901 | -10/Mines | Deemed a non-threat by the Exiles lab entrance 902 | -10/Mines | Discovered new exit (range 5) 907 | -10/Mines | Entered Exiles 940 | -10/Exiles | Met 8R-AWN 961 | -10/Exiles | Met EX-HEX 997 | -10/Exiles | Met EX-BIN 1027 | -10/Exiles | Aligned with FarCom system 1028 | -10/Exiles | Given EX-Vault access code 1060 | -10/Exiles | Opened EX-Vault 1074 | -10/Exiles | Found Chronowheel 1102 | -10/Exiles | Warned to stay clear of 0b10 Research branches 1141 | -10/Exiles | Met EX-DEC 1184 | -10/Exiles | Discovered new exit (range 14) 1198 | -10/Exiles | Left Exiles lab with Chronowheel 1198 | -10/Exiles | Entered Mines 1201 | -9/Mines | Assembled infested the area 1206 | -9/Mines | Assisted by a Guerilla fighting off Assembled 1283 | -9/Mines | Core integrity fell below 20% 1289 | -9/Mines | Identified Decoy Drone Bay 1320 | -9/Mines | Lost 7 parts (1p1n1u4w) 1351 | -9/Mines | Discovered new exit (range 67) 1366 | -9/Mines | Destroyed by as-27290 with Assembled Heavy Rifle Last Messages --------------- 01334_ Destroyed Asb. Hover Unit. 01339_ The unstable cave ceiling collapses. 01339_ Decoy Drone destroyed. 01341_ The unstable cave ceiling collapses. 01344_ U-05 Engineer builds a Wall. 01345_ The unstable cave ceiling collapses. 01351_ EXIT=FOUND 01351_ Decoy Drone self-destructs. 01351_ Decoy Drone destroyed. 01352_ >> Lost connection to Decoy Drone. 01353_ Dropped Particle Gun. 01354_ Dropped Com. Wheel. 01355_ Acquired Lgt. Nuclear Core. 01359_ Acquired 8 matter. 01361_ The unstable cave ceiling collapses. 01361_ Com. Wheel destroyed. 01361_ Acquired Flight Unit. 01362_ Acquired 9 matter. 01363_ Acquired 1 matter. 01364_ Acquired Lgt. Ion Engine. Map ----- +----------------------------------------------------+ | ???## ###?????????????????????????# """ ## | | ???# ##??????????????????????### """ # | | ???# #??????????????????????# # | | ???# #??????????????????????# ### #### | | ???## #??????????????????????# #?#####??? | | ????## #??????????????????????# #????????? | | ?????## ##?????????????????????# #????????? | | ??????### %# ###???????????????????# #????????? | | ???????## # ## ##########?###??????# #????????? | | ???????## # # # ### ###????# #????????? | | ??????? #%### # # ###??# #????????? | | ???????## # #??# #????????? | | ???????##### # = ##?# #????????? | | ???????# # aaa % ### #????????? | | ???????## # # = % !##%##### #?? | | ????????##### # # % *%= = | | ????????????#### # % # # | | ???????????????## ### ## # | | ????????????????##% % #### #######??##%! # | | ?????????????#### * ## #######???????????# # | | ?????????????# $ ###?????????????????? | | ?????????????# # #?????????????????? | | ??????????# ### #?????????????????? | | ??????????# ####### ###?????????????????? | | ??????????#??# #??????????????????? | | ?????????????#"" @# [#######????????????? | | ?????????????#""" %# !]* /[[= #????????????? | | ?????????????#""" %%% ######### #????????????? | | ?????????????# % #%[#??????## #????????????? | | ?????????????# ##!#####?## ##???????????? | | ?????????????# ##[ #?#% ##??????????? | | ?????????????############# #?# ##?????????? | | ?????????????????????????# #?# ##????????? | | ?????????????????????????# #?# #????????? | | ?????????????????????????# ### #????????? | | ?????????????????????????# ## % #????????? | | ?????????????????????????# #????????? | | ?????????????????????????# ##????????? | | ?????????????????????????# ###?????????? | | ?????????????????????????##########???????????? | | ??????????????????????????????????????????????? | | ??????????????????????????????????????????????? | | | | | | | | | | | | | | | | | +----------------------------------------------------+ Best States ------------- Heat Dissipation 39 Energy Generation 10 Energy Capacity 250 Matter Stores 300 Matter Capacity 300 Sight Range 18 Terrain Scan Density 10 Evasion (%) 55 Item Schematics ----------------- None Robot Schematics ------------------ None Fabricated ------------ Nothing Alien Tech Used ----------------- None Achievements -------------- Release The Drones! Challenges ------------ None Game ------ Seed BoreArchitectWeb Manual? 0 Play Time 00:14:46 Cumulative 119.2 hours Start 2021.10.24 @ 11:17:53 End 2021.10.24 @ 11:31:33 Sessions 1 Manual Loads 0 Difficulty Rogue Special Mode None Game No. 89 Rogue 89 Adventurer 0 Explorer 0 Win Type - Total 0 Types 0/0/0/0/0/0/0/0/0 Lore% 57 Gallery% 65 Achievement% 45 Wizard Run 0 Options --------- ASCII 0 Keyboard 0 Movement Numpad Keybinds 0 Fullscreen 0 Font 16/SmallcapsGlow Map View 76x50 Tactical HUD 1 Map Filters NONE Filters LOW_CONTRAST(13,24,33) Steam 1 RUN: 4990e313-0e37-4853-be84-eea632c1f354